[Event "Early-Titled-Tuesday-Blitz-May-14-2024"]
[Site "Chess.com"]
[Date "2024.05.14"]
[Round "4"]
[White "DarZay"]
[Black "Incognizance"]
[Result "1-0"]
[WhiteElo "2326"]
[BlackElo "1985"]
[TimeControl "180+1"]
[EndTime "8:37:46 PDT"]
[Termination "DarZay won by checkmate"]

1. e4 {[%clk 0:02:58.5]} 1... c5 {[%clk 0:03:00.3]} 2. Nf3 {[%clk 0:02:58.1]}
2... Nc6 {[%clk 0:03:01]} 3. d4 {[%clk 0:02:57.4]} 3... cxd4 {[%clk 0:03:01.9]}
4. Nxd4 {[%clk 0:02:57.6]} 4... e5 {[%clk 0:03:02.6]} 5. Nb5 {[%clk 0:02:57.1]}
5... d6 {[%clk 0:03:02.7]} 6. c4 {[%clk 0:02:57.2]} 6... Be6 {[%clk 0:03:01.9]}
7. N5c3 {[%clk 0:02:56.6]} 7... Be7 {[%clk 0:03:01.4]} 8. Nd5 {[%clk 0:02:56.2]}
8... Nf6 {[%clk 0:03:00.4]} 9. Bd3 {[%clk 0:02:55.5]} 9... Nd4 {[%clk
0:02:59.4]} 10. Nbc3 {[%clk 0:02:51.3]} 10... O-O {[%clk 0:02:55.5]} 11. O-O
{[%clk 0:02:50.9]} 11... Bxd5 {[%clk 0:02:54.6]} 12. Nxd5 {[%clk 0:02:42.3]}
12... Nxd5 {[%clk 0:02:54.7]} 13. cxd5 {[%clk 0:02:41.9]} 13... Bg5 {[%clk
0:02:54.4]} 14. f4 {[%clk 0:02:28.7]} 14... Bxf4 {[%clk 0:02:43.4]} 15. Bxf4
{[%clk 0:02:28.4]} 15... exf4 {[%clk 0:02:43.4]} 16. Rxf4 {[%clk 0:02:28.1]}
16... Qb6 {[%clk 0:02:37]} 17. Kh1 {[%clk 0:02:24.3]} 17... Nb5 {[%clk
0:02:18.1]} 18. Rh4 {[%clk 0:02:20.8]} 18... Nc7 {[%clk 0:02:09.1]} 19. e5
{[%clk 0:02:18.1]} 19... g6 {[%clk 0:02:09.4]} 20. Qd2 {[%clk 0:02:09.5]} 20...
f5 {[%clk 0:01:56.2]} 21. e6 {[%clk 0:01:51.8]} 21... Nxd5 {[%clk 0:01:55.6]}
22. Bc4 {[%clk 0:01:49.6]} 22... Ne7 {[%clk 0:01:40.5]} 23. Qh6 {[%clk
0:01:48.3]} 23... Rfc8 {[%clk 0:01:13.3]} 24. Qxh7+ {[%clk 0:01:46.8]} 24... Kf8
{[%clk 0:01:13.8]} 25. Qf7# {[%clk 0:01:46.5]} 1-0

[Event "Early-Titled-Tuesday-Blitz-May-14-2024"]
[Site "Chess.com"]
[Date "2024.05.14"]
[Round "4"]
[White "ViktoriyaTarasova"]
[Black "StelaSfw"]
[Result "1-0"]
[WhiteElo "2308"]
[BlackElo "1607"]
[TimeControl "180+1"]
[EndTime "8:37:53 PDT"]
[Termination "ViktoriyaTarasova won by resignation"]

1. d4 {[%clk 0:02:58.1]} 1... g6 {[%clk 0:02:58.7]} 2. c4 {[%clk 0:02:56.1]}
2... Nf6 {[%clk 0:02:58.5]} 3. e4 {[%clk 0:02:56.8]} 3... Bg7 {[%clk 0:02:58.2]}
4. Nc3 {[%clk 0:02:56.5]} 4... d6 {[%clk 0:02:58.4]} 5. h3 {[%clk 0:02:56.6]}
5... O-O {[%clk 0:02:58.5]} 6. Be3 {[%clk 0:02:56]} 6... Ne8 {[%clk 0:02:57.2]}
7. g4 {[%clk 0:02:49.3]} 7... c5 {[%clk 0:02:56.3]} 8. d5 {[%clk 0:02:49]} 8...
e6 {[%clk 0:02:55.7]} 9. Be2 {[%clk 0:02:48.6]} 9... exd5 {[%clk 0:02:55]} 10.
cxd5 {[%clk 0:02:48.7]} 10... Nd7 {[%clk 0:02:54.2]} 11. Nf3 {[%clk 0:02:47.6]}
11... Ne5 {[%clk 0:02:53.6]} 12. Nxe5 {[%clk 0:02:47.3]} 12... Bxe5 {[%clk
0:02:53.3]} 13. f4 {[%clk 0:02:42.5]} 13... Bg7 {[%clk 0:02:52.6]} 14. O-O
{[%clk 0:02:41.7]} 14... Qa5 {[%clk 0:02:51.4]} 15. Qc2 {[%clk 0:02:37.6]} 15...
a6 {[%clk 0:02:47.3]} 16. a4 {[%clk 0:02:36.7]} 16... Qd8 {[%clk 0:02:38.6]} 17.
Kg2 {[%clk 0:02:36.3]} 17... Qe7 {[%clk 0:02:31.1]} 18. Bd3 {[%clk 0:02:34.7]}
18... b6 {[%clk 0:02:22.7]} 19. Rae1 {[%clk 0:02:33.4]} 19... Qd7 {[%clk
0:02:10.1]} 20. Bf2 {[%clk 0:02:29.5]} 20... h5 {[%clk 0:01:57.6]} 21. Be2
{[%clk 0:02:28.9]} 21... hxg4 {[%clk 0:01:45.4]} 22. hxg4 {[%clk 0:02:26.8]}
22... f5 {[%clk 0:01:41.9]} 23. exf5 {[%clk 0:02:23.5]} 23... gxf5 {[%clk
0:01:39.4]} 24. g5 {[%clk 0:02:23.5]} 24... Bb7 {[%clk 0:01:28.5]} 25. Bf3
{[%clk 0:02:23.2]} 25... Qf7 {[%clk 0:01:28.2]} 26. Re6 {[%clk 0:02:18.5]} 26...
Rd8 {[%clk 0:01:26]} 27. Rfe1 {[%clk 0:02:17.8]} 27... Nc7 {[%clk 0:01:25.7]}
28. Re7 {[%clk 0:02:05.8]} 28... Qg6 {[%clk 0:01:23.9]} 29. Rxc7 {[%clk
0:02:04.8]} 29... Bc8 {[%clk 0:01:21.8]} 30. Ree7 {[%clk 0:02:04.2]} 1-0

[Event "Early-Titled-Tuesday-Blitz-May-14-2024"]
[Site "Chess.com"]
[Date "2024.05.14"]
[Round "4"]
[White "vladislavkovalev"]
[Black "Zq1"]
[Result "1-0"]
[WhiteElo "2848"]
[BlackElo "2616"]
[TimeControl "180+1"]
[EndTime "8:38:19 PDT"]
[Termination "vladislavkovalev won by resignation"]

1. e4 {[%clk 0:03:00.9]} 1... c5 {[%clk 0:02:59.3]} 2. Nf3 {[%clk 0:03:01.2]}
2... d6 {[%clk 0:02:59]} 3. Bb5+ {[%clk 0:03:01.2]} 3... Bd7 {[%clk 0:02:58.5]}
4. Bxd7+ {[%clk 0:03:01.3]} 4... Qxd7 {[%clk 0:02:58.7]} 5. O-O {[%clk 0:03:02]}
5... Nc6 {[%clk 0:02:58.5]} 6. Re1 {[%clk 0:03:01.4]} 6... Nf6 {[%clk 0:02:57]}
7. c3 {[%clk 0:03:01.8]} 7... e6 {[%clk 0:02:55.5]} 8. d4 {[%clk 0:03:02.1]}
8... cxd4 {[%clk 0:02:55.4]} 9. cxd4 {[%clk 0:03:03]} 9... d5 {[%clk 0:02:55.6]}
10. e5 {[%clk 0:03:03.8]} 10... Ne4 {[%clk 0:02:55.6]} 11. Qe2 {[%clk
0:02:42.2]} 11... Bb4 {[%clk 0:02:47]} 12. Rd1 {[%clk 0:02:42.4]} 12... Be7
{[%clk 0:02:45.1]} 13. a3 {[%clk 0:02:43.1]} 13... O-O {[%clk 0:02:43.7]} 14.
Nbd2 {[%clk 0:02:36.8]} 14... Nxd2 {[%clk 0:02:38.6]} 15. Bxd2 {[%clk
0:02:37.7]} 15... f6 {[%clk 0:02:38.5]} 16. exf6 {[%clk 0:02:34.8]} 16... Bxf6
{[%clk 0:02:37]} 17. Bc3 {[%clk 0:02:32.4]} 17... Rae8 {[%clk 0:02:33.3]} 18.
Re1 {[%clk 0:02:32.8]} 18... g6 {[%clk 0:02:23.9]} 19. Qd3 {[%clk 0:02:33.1]}
19... Bg7 {[%clk 0:02:20.2]} 20. Re2 {[%clk 0:02:33.7]} 20... Ne7 {[%clk
0:02:06]} 21. Rae1 {[%clk 0:02:32.2]} 21... Nf5 {[%clk 0:02:05.7]} 22. h3 {[%clk
0:02:20.4]} 22... Nd6 {[%clk 0:01:56.5]} 23. Bb4 {[%clk 0:02:20.3]} 23... Rf5
{[%clk 0:01:52]} 24. Bxd6 {[%clk 0:02:20.1]} 24... Qxd6 {[%clk 0:01:51.2]} 25.
g3 {[%clk 0:02:14.6]} 25... a6 {[%clk 0:01:41.9]} 26. Kg2 {[%clk 0:02:14.5]}
26... Qd7 {[%clk 0:01:32.1]} 27. h4 {[%clk 0:02:14.1]} 27... Ref8 {[%clk
0:01:29.6]} 28. Ng5 {[%clk 0:02:12.8]} 28... e5 {[%clk 0:01:24.8]} 29. dxe5
{[%clk 0:02:11.6]} 29... Bxe5 {[%clk 0:01:24]} 30. Rxe5 {[%clk 0:01:49.2]} 30...
Rxf2+ {[%clk 0:01:22.6]} 31. Kg1 {[%clk 0:01:49.9]} 31... d4 {[%clk 0:01:20.5]}
32. Qc4+ {[%clk 0:01:43.3]} 32... Kh8 {[%clk 0:01:17.4]} 33. Re7 {[%clk
0:01:36.8]} 1-0

[Event "Early-Titled-Tuesday-Blitz-May-14-2024"]
[Site "Chess.com"]
[Date "2024.05.14"]
[Round "4"]
[White "Savagelittlemole"]
[Black "JiiHart"]
[Result "1-0"]
[WhiteElo "2478"]
[BlackElo "2202"]
[TimeControl "180+1"]
[EndTime "8:38:22 PDT"]
[Termination "Savagelittlemole won by resignation"]

1. d4 {[%clk 0:03:00.9]} 1... d5 {[%clk 0:02:59.2]} 2. Nf3 {[%clk 0:03:00.3]}
2... Nf6 {[%clk 0:02:59]} 3. Bg5 {[%clk 0:03:00.3]} 3... Ne4 {[%clk 0:02:57.7]}
4. Nbd2 {[%clk 0:02:58.7]} 4... c5 {[%clk 0:02:50.9]} 5. dxc5 {[%clk 0:02:52.3]}
5... Nxg5 {[%clk 0:02:47.5]} 6. Nxg5 {[%clk 0:02:53.2]} 6... e5 {[%clk
0:02:47.1]} 7. h4 {[%clk 0:02:51]} 7... Bxc5 {[%clk 0:02:45]} 8. e4 {[%clk
0:02:51.1]} 8... h6 {[%clk 0:02:37.2]} 9. Bb5+ {[%clk 0:02:45.7]} 9... Nc6
{[%clk 0:02:34.1]} 10. Qh5 {[%clk 0:02:38.5]} 10... O-O {[%clk 0:02:31.1]} 11.
O-O-O {[%clk 0:02:23.2]} 11... Bxf2 {[%clk 0:02:19.8]} 12. exd5 {[%clk
0:02:19.4]} 12... Nd4 {[%clk 0:02:19.1]} 13. Bc4 {[%clk 0:02:15.1]} 13... Bf5
{[%clk 0:02:16.6]} 14. d6 {[%clk 0:02:10.4]} 14... Bg6 {[%clk 0:01:50]} 15. Qxg6
{[%clk 0:02:03.7]} 15... hxg5 {[%clk 0:00:54.3]} 16. hxg5 {[%clk 0:01:59.8]}
16... Ne2+ {[%clk 0:00:50.2]} 17. Kb1 {[%clk 0:01:57.3]} 17... Nc3+ {[%clk
0:00:26.3]} 18. Ka1 {[%clk 0:01:55.4]} 1-0

[Event "Early-Titled-Tuesday-Blitz-May-14-2024"]
[Site "Chess.com"]
[Date "2024.05.14"]
[Round "4"]
[White "ArtemDyachuk"]
[Black "omer1997"]
[Result "1-0"]
[WhiteElo "2706"]
[BlackElo "2530"]
[TimeControl "180+1"]
[EndTime "8:38:33 PDT"]
[Termination "ArtemDyachuk won by resignation"]

1. e4 {[%clk 0:03:00.9]} 1... e5 {[%clk 0:02:58.3]} 2. Nf3 {[%clk 0:03:00.6]}
2... Nf6 {[%clk 0:02:57.9]} 3. Nxe5 {[%clk 0:02:58.9]} 3... d6 {[%clk
0:02:58.5]} 4. Nf3 {[%clk 0:02:59.3]} 4... Nxe4 {[%clk 0:02:58.9]} 5. d4 {[%clk
0:02:59.6]} 5... d5 {[%clk 0:02:59.2]} 6. Bd3 {[%clk 0:03:00.1]} 6... Be7 {[%clk
0:02:59.7]} 7. O-O {[%clk 0:02:58.5]} 7... Nc6 {[%clk 0:03:00]} 8. c4 {[%clk
0:02:54.8]} 8... Bf5 {[%clk 0:02:59.1]} 9. Re1 {[%clk 0:02:36]} 9... O-O {[%clk
0:02:50.6]} 10. Nc3 {[%clk 0:02:32.6]} 10... Bb4 {[%clk 0:02:30.2]} 11. cxd5
{[%clk 0:02:12.9]} 11... Bxc3 {[%clk 0:02:14.6]} 12. bxc3 {[%clk 0:01:45.4]}
12... Qxd5 {[%clk 0:01:40.6]} 13. c4 {[%clk 0:01:45]} 13... Qe6 {[%clk 0:01:39]}
14. Ng5 {[%clk 0:01:15.3]} 14... Nc3 {[%clk 0:01:10.2]} 15. Nxe6 {[%clk
0:01:06.3]} 15... Nxd1 {[%clk 0:01:03.5]} 16. Bxf5 {[%clk 0:01:04.7]} 1-0

[Event "Early-Titled-Tuesday-Blitz-May-14-2024"]
[Site "Chess.com"]
[Date "2024.05.14"]
[Round "4"]
[White "lagunanivaria"]
[Black "ferdipy"]
[Result "1-0"]
[WhiteElo "2518"]
[BlackElo "2306"]
[TimeControl "180+1"]
[EndTime "8:38:40 PDT"]
[Termination "lagunanivaria won by resignation"]

1. c3 {[%clk 0:02:55.5]} 1... e5 {[%clk 0:01:54.4]} 2. d4 {[%clk 0:02:56.4]}
2... exd4 {[%clk 0:01:54.2]} 3. cxd4 {[%clk 0:02:56.7]} 3... d5 {[%clk
0:01:55.1]} 4. Nc3 {[%clk 0:02:57.3]} 4... c6 {[%clk 0:01:56]} 5. Nf3 {[%clk
0:02:55.3]} 5... Bd6 {[%clk 0:01:56.9]} 6. Bg5 {[%clk 0:02:55]} 6... Ne7 {[%clk
0:01:57.8]} 7. e3 {[%clk 0:02:55]} 7... f6 {[%clk 0:01:58.7]} 8. Bh4 {[%clk
0:02:54.7]} 8... O-O {[%clk 0:01:58.3]} 9. Bd3 {[%clk 0:02:54.2]} 9... Bf5
{[%clk 0:01:58.7]} 10. Bg3 {[%clk 0:02:51.6]} 10... Bxd3 {[%clk 0:01:58]} 11.
Qxd3 {[%clk 0:02:51.4]} 11... Na6 {[%clk 0:01:58.3]} 12. a3 {[%clk 0:02:49.1]}
12... Nc7 {[%clk 0:01:58.4]} 13. O-O {[%clk 0:02:46]} 13... Bxg3 {[%clk
0:01:57.8]} 14. hxg3 {[%clk 0:02:46.9]} 14... Qd6 {[%clk 0:01:57.8]} 15. b4
{[%clk 0:02:44.9]} 15... Rae8 {[%clk 0:01:56.9]} 16. Rab1 {[%clk 0:02:43.1]}
16... b5 {[%clk 0:01:52.9]} 17. Rfc1 {[%clk 0:02:39]} 17... Nc8 {[%clk
0:01:51.5]} 18. a4 {[%clk 0:02:33.1]} 18... a6 {[%clk 0:01:50.6]} 19. a5 {[%clk
0:02:32.6]} 19... Qd7 {[%clk 0:01:46.3]} 20. e4 {[%clk 0:02:27.6]} 20... Nd6
{[%clk 0:01:42.8]} 21. exd5 {[%clk 0:02:25.9]} 21... cxd5 {[%clk 0:01:42]} 22.
Nd2 {[%clk 0:02:23]} 22... Nc4 {[%clk 0:01:42.1]} 23. Re1 {[%clk 0:02:22.4]}
23... g6 {[%clk 0:01:37.6]} 24. Nf1 {[%clk 0:02:06.1]} 24... Qd6 {[%clk
0:01:27.8]} 25. Rxe8 {[%clk 0:01:57.9]} 25... Rxe8 {[%clk 0:01:27.4]} 26. Qf3
{[%clk 0:01:58.8]} 26... Kg7 {[%clk 0:01:18.8]} 27. Ne3 {[%clk 0:01:55.8]} 27...
Nd2 {[%clk 0:01:18.7]} 28. Qg4 {[%clk 0:01:53.5]} 28... Nxb1 {[%clk 0:01:17.8]}
29. Nf5+ {[%clk 0:01:53.3]} 29... Kg8 {[%clk 0:01:14.6]} 30. Nxd6 {[%clk
0:01:53.2]} 30... Re1+ {[%clk 0:01:14.9]} 31. Kh2 {[%clk 0:01:53.3]} 31... Nxc3
{[%clk 0:01:15]} 32. Qc8+ {[%clk 0:01:52.6]} 32... Ne8 {[%clk 0:01:10.8]} 33.
Nxe8 {[%clk 0:01:51]} 33... Ne4 {[%clk 0:01:10.7]} 34. Nxf6+ {[%clk 0:01:49.8]}
34... Kg7 {[%clk 0:01:10.8]} 35. Nxe4 {[%clk 0:01:42.3]} 35... Rxe4 {[%clk
0:01:11.7]} 36. Qd7+ {[%clk 0:01:41]} 36... Kh6 {[%clk 0:01:09.5]} 37. Qxd5
{[%clk 0:01:38.2]} 1-0

[Event "Early-Titled-Tuesday-Blitz-May-14-2024"]
[Site "Chess.com"]
[Date "2024.05.14"]
[Round "4"]
[White "secrethawk1"]
[Black "kyawmyataung2005"]
[Result "1-0"]
[WhiteElo "2446"]
[BlackElo "2252"]
[TimeControl "180+1"]
[EndTime "8:38:43 PDT"]
[Termination "secrethawk1 won by resignation"]

1. Nf3 {[%clk 0:03:00.9]} 1... d5 {[%clk 0:02:58.2]} 2. e3 {[%clk 0:02:58.4]}
2... c5 {[%clk 0:02:57.4]} 3. d4 {[%clk 0:02:52.8]} 3... Nf6 {[%clk 0:02:54.5]}
4. Be2 {[%clk 0:02:51.2]} 4... Bf5 {[%clk 0:02:51.7]} 5. c3 {[%clk 0:02:49.9]}
5... e6 {[%clk 0:02:51.2]} 6. O-O {[%clk 0:02:48.9]} 6... h6 {[%clk 0:02:50.7]}
7. Bd3 {[%clk 0:02:47]} 7... Nc6 {[%clk 0:02:48.9]} 8. Bxf5 {[%clk 0:02:45.8]}
8... exf5 {[%clk 0:02:48.8]} 9. dxc5 {[%clk 0:02:44.8]} 9... Bxc5 {[%clk
0:02:48.4]} 10. Nd4 {[%clk 0:02:44.5]} 10... g6 {[%clk 0:02:46.7]} 11. Nd2
{[%clk 0:02:39.1]} 11... O-O {[%clk 0:02:45.4]} 12. Qf3 {[%clk 0:02:35.4]} 12...
Kg7 {[%clk 0:02:44.3]} 13. Qg3 {[%clk 0:02:34]} 13... Kh7 {[%clk 0:02:38.5]} 14.
N4f3 {[%clk 0:02:28.4]} 14... Bd6 {[%clk 0:02:34.7]} 15. Qh3 {[%clk 0:02:24.9]}
15... Kg7 {[%clk 0:02:28.8]} 16. Nb3 {[%clk 0:02:21.2]} 16... Ne4 {[%clk
0:02:17.7]} 17. Nbd4 {[%clk 0:02:17.7]} 17... Ne5 {[%clk 0:02:12.8]} 18. Nxe5
{[%clk 0:02:08.9]} 18... Bxe5 {[%clk 0:02:12.1]} 19. f3 {[%clk 0:02:06.6]} 19...
Ng5 {[%clk 0:02:10.6]} 20. Qh4 {[%clk 0:02:02.7]} 20... f4 {[%clk 0:01:50.5]}
21. Qf2 {[%clk 0:01:56.5]} 21... Qf6 {[%clk 0:01:43.4]} 22. Ne2 {[%clk
0:01:50.2]} 22... Ne6 {[%clk 0:01:27.8]} 23. Rd1 {[%clk 0:01:38.8]} 23... fxe3
{[%clk 0:01:23]} 24. Bxe3 {[%clk 0:01:34.5]} 24... Rfd8 {[%clk 0:01:15.5]} 25.
f4 {[%clk 0:01:30.8]} 25... Bc7 {[%clk 0:01:12.8]} 26. Rf1 {[%clk 0:01:30.1]}
26... Qf5 {[%clk 0:01:08.7]} 27. Ng3 {[%clk 0:01:29.1]} 27... Qg4 {[%clk
0:01:03.9]} 28. h3 {[%clk 0:01:26.3]} 1-0

[Event "Early-Titled-Tuesday-Blitz-May-14-2024"]
[Site "Chess.com"]
[Date "2024.05.14"]
[Round "4"]
[White "carloseduar100"]
[Black "Siemba"]
[Result "0-1"]
[WhiteElo "2219"]
[BlackElo "2486"]
[TimeControl "180+1"]
[EndTime "8:38:53 PDT"]
[Termination "Siemba won by resignation"]

1. e4 {[%clk 0:02:55.7]} 1... g6 {[%clk 0:02:58.4]} 2. d3 {[%clk 0:02:47.6]}
2... d5 {[%clk 0:02:56.4]} 3. g3 {[%clk 0:02:48.5]} 3... dxe4 {[%clk 0:02:56.3]}
4. dxe4 {[%clk 0:02:45.2]} 4... Qxd1+ {[%clk 0:02:57.2]} 5. Kxd1 {[%clk
0:02:45.5]} 5... Bg7 {[%clk 0:02:53.9]} 6. c3 {[%clk 0:02:45.7]} 6... Nc6 {[%clk
0:02:53.1]} 7. f4 {[%clk 0:02:46.2]} 7... Bg4+ {[%clk 0:02:53]} 8. Kc2 {[%clk
0:02:46.3]} 8... O-O-O {[%clk 0:02:52.9]} 9. Be3 {[%clk 0:02:46.5]} 9... Nf6
{[%clk 0:02:48.8]} 10. Nd2 {[%clk 0:02:46]} 10... e5 {[%clk 0:02:46]} 11. Be2
{[%clk 0:02:45.7]} 11... exf4 {[%clk 0:02:42.8]} 12. gxf4 {[%clk 0:02:45.7]}
12... Rhe8 {[%clk 0:02:42.2]} 13. e5 {[%clk 0:02:45.7]} 13... Bxe2 {[%clk
0:02:39.5]} 14. Nxe2 {[%clk 0:02:44]} 14... Ng4 {[%clk 0:02:34.9]} 15. Bg1
{[%clk 0:02:39.4]} 15... f6 {[%clk 0:02:34.1]} 16. h3 {[%clk 0:02:28.9]} 16...
Nh6 {[%clk 0:02:33.8]} 17. Nd4 {[%clk 0:02:01.8]} 17... fxe5 {[%clk 0:02:26.5]}
18. Nxc6 {[%clk 0:02:00.3]} 18... bxc6 {[%clk 0:02:27.4]} 19. fxe5 {[%clk
0:01:56.6]} 19... Rxe5 {[%clk 0:02:28.3]} 20. Bxa7 {[%clk 0:01:55.5]} 20... Kb7
{[%clk 0:02:09.1]} 21. Bd4 {[%clk 0:01:54.4]} 21... Re2 {[%clk 0:02:08]} 22. Kd3
{[%clk 0:01:47.7]} 22... Rxd2+ {[%clk 0:02:06.7]} 23. Kxd2 {[%clk 0:01:46.2]}
23... c5 {[%clk 0:02:07.6]} 24. Kd3 {[%clk 0:01:37.5]} 24... cxd4 {[%clk
0:02:07.8]} 25. c4 {[%clk 0:01:38.2]} 25... Nf7 {[%clk 0:02:01.4]} 26. b3 {[%clk
0:01:33.8]} 26... Ne5+ {[%clk 0:02:01.6]} 27. Kd2 {[%clk 0:01:34.5]} 27... Nf3+
{[%clk 0:01:58.9]} 28. Kd3 {[%clk 0:01:33.9]} 28... Re8 {[%clk 0:01:59.1]} 29.
Raf1 {[%clk 0:01:31.2]} 29... Re3+ {[%clk 0:01:59.5]} 30. Kc2 {[%clk 0:01:31.7]}
30... d3+ {[%clk 0:01:59.7]} 31. Kd1 {[%clk 0:01:29]} 31... Bc3 {[%clk
0:01:57.7]} 32. h4 {[%clk 0:01:24.9]} 32... d2 {[%clk 0:01:49]} 33. Kc2 {[%clk
0:00:33.7]} 33... Re1 {[%clk 0:01:49.9]} 34. Rxf3 {[%clk 0:00:33.8]} 34... d1=Q+
{[%clk 0:01:50.1]} 35. Kxc3 {[%clk 0:00:34.1]} 35... Qxf3+ {[%clk 0:01:50.3]}
0-1

[Event "Early-Titled-Tuesday-Blitz-May-14-2024"]
[Site "Chess.com"]
[Date "2024.05.14"]
[Round "4"]
[White "Kombinator01"]
[Black "HighLawView"]
[Result "1-0"]
[WhiteElo "2363"]
[BlackElo "2102"]
[TimeControl "180+1"]
[EndTime "8:38:53 PDT"]
[Termination "Kombinator01 won by resignation"]

1. e4 {[%clk 0:02:59.8]} 1... e6 {[%clk 0:02:48.5]} 2. d4 {[%clk 0:02:58.2]}
2... d5 {[%clk 0:02:47.4]} 3. exd5 {[%clk 0:02:52.6]} 3... exd5 {[%clk
0:02:46.8]} 4. Nf3 {[%clk 0:02:52.5]} 4... Nf6 {[%clk 0:02:46]} 5. c4 {[%clk
0:02:52.8]} 5... c6 {[%clk 0:02:43.8]} 6. Nc3 {[%clk 0:02:49.4]} 6... Be7 {[%clk
0:02:43.5]} 7. h3 {[%clk 0:02:45.8]} 7... O-O {[%clk 0:02:43.2]} 8. Be3 {[%clk
0:02:45.6]} 8... Qb6 {[%clk 0:02:37.8]} 9. Qb3 {[%clk 0:02:43.6]} 9... Qxb3
{[%clk 0:02:35]} 10. axb3 {[%clk 0:02:43.6]} 10... Bf5 {[%clk 0:02:30.4]} 11. c5
{[%clk 0:02:40.9]} 11... Nbd7 {[%clk 0:02:19]} 12. Kd2 {[%clk 0:02:27.2]} 12...
h6 {[%clk 0:02:11.8]} 13. Be2 {[%clk 0:02:23.4]} 13... Ne4+ {[%clk 0:02:06.9]}
14. Nxe4 {[%clk 0:02:22]} 14... Bxe4 {[%clk 0:02:06.2]} 15. Ra4 {[%clk
0:02:19.5]} 15... f5 {[%clk 0:01:51.6]} 16. Bf4 {[%clk 0:02:11.3]} 16... g5
{[%clk 0:01:51.2]} 17. Be5 {[%clk 0:02:10.7]} 17... Nxe5 {[%clk 0:01:43]} 18.
Nxe5 {[%clk 0:02:02.7]} 18... f4 {[%clk 0:01:27.7]} 19. f3 {[%clk 0:02:03]}
19... Bf5 {[%clk 0:01:22.3]} 20. Rha1 {[%clk 0:02:02]} 20... a6 {[%clk
0:01:21.9]} 21. Rb4 {[%clk 0:02:01.8]} 21... Rab8 {[%clk 0:01:17.3]} 22. Bd3
{[%clk 0:02:01.2]} 22... Bxd3 {[%clk 0:01:07.2]} 23. Kxd3 {[%clk 0:01:59.1]}
23... Rfd8 {[%clk 0:01:07.7]} 24. Raa4 {[%clk 0:01:52]} 24... Bf6 {[%clk
0:01:07.3]} 25. Rb6 {[%clk 0:01:44.5]} 25... Re8 {[%clk 0:00:59.9]} 26. Nd7
{[%clk 0:01:42.4]} 26... Re3+ {[%clk 0:00:59.6]} 27. Kd2 {[%clk 0:01:38.8]}
27... Rbe8 {[%clk 0:00:41.9]} 28. Nxf6+ {[%clk 0:01:32.8]} 28... Kf7 {[%clk
0:00:42.1]} 29. Nxe8 {[%clk 0:01:33]} 1-0

[Event "Early-Titled-Tuesday-Blitz-May-14-2024"]
[Site "Chess.com"]
[Date "2024.05.14"]
[Round "4"]
[White "akanga001"]
[Black "Azalea95"]
[Result "0-1"]
[WhiteElo "2148"]
[BlackElo "2383"]
[TimeControl "180+1"]
[EndTime "8:39:05 PDT"]
[Termination "Azalea95 won on time"]

1. d4 {[%clk 0:03:00.9]} 1... Nf6 {[%clk 0:02:57.2]} 2. c4 {[%clk 0:02:58]} 2...
e6 {[%clk 0:02:56.9]} 3. Nf3 {[%clk 0:02:53.8]} 3... d5 {[%clk 0:02:57.6]} 4.
Nc3 {[%clk 0:02:50.8]} 4... Be7 {[%clk 0:02:56.8]} 5. Bg5 {[%clk 0:02:48.6]}
5... O-O {[%clk 0:02:55.4]} 6. e3 {[%clk 0:02:33.8]} 6... h6 {[%clk 0:02:55.4]}
7. Bh4 {[%clk 0:02:31.6]} 7... c6 {[%clk 0:02:55.4]} 8. Bd3 {[%clk 0:01:32.1]}
8... dxc4 {[%clk 0:02:53.9]} 9. Bxc4 {[%clk 0:01:31.5]} 9... b5 {[%clk
0:02:49.9]} 10. Bd3 {[%clk 0:01:31.5]} 10... a6 {[%clk 0:02:48.7]} 11. Ne5
{[%clk 0:01:29.1]} 11... Bb7 {[%clk 0:02:46.5]} 12. Rc1 {[%clk 0:01:27.5]} 12...
Nbd7 {[%clk 0:02:42.3]} 13. f4 {[%clk 0:01:26.4]} 13... c5 {[%clk 0:02:41.5]}
14. O-O {[%clk 0:01:24.5]} 14... cxd4 {[%clk 0:02:35]} 15. exd4 {[%clk
0:01:24.5]} 15... Qb6 {[%clk 0:02:34.6]} 16. Bf2 {[%clk 0:01:21.8]} 16... Qd6
{[%clk 0:02:22]} 17. a3 {[%clk 0:01:13.2]} 17... Rac8 {[%clk 0:02:20.4]} 18. Qe2
{[%clk 0:00:53]} 18... Nb6 {[%clk 0:02:18.4]} 19. f5 {[%clk 0:00:40]} 19... Nbd5
{[%clk 0:02:14]} 20. fxe6 {[%clk 0:00:35.8]} 20... Qxe6 {[%clk 0:02:14]} 21. Ne4
{[%clk 0:00:30.7]} 21... Nf4 {[%clk 0:02:09.2]} 22. Nxf6+ {[%clk 0:00:25.8]}
22... Bxf6 {[%clk 0:01:51.2]} 23. Qe3 {[%clk 0:00:12.1]} 23... Bxe5 {[%clk
0:01:50.2]} 24. dxe5 {[%clk 0:00:09.9]} 24... Qd5 {[%clk 0:01:49.3]} 0-1

[Event "Early-Titled-Tuesday-Blitz-May-14-2024"]
[Site "Chess.com"]
[Date "2024.05.14"]
[Round "4"]
[White "Aleksandar-Topalov"]
[Black "NMChessToImpress"]
[Result "0-1"]
[WhiteElo "2479"]
[BlackElo "2275"]
[TimeControl "180+1"]
[EndTime "8:39:09 PDT"]
[Termination "NMChessToImpress won by resignation"]

1. b3 {[%clk 0:03:00.9]} 1... e5 {[%clk 0:02:59.8]} 2. Bb2 {[%clk 0:03:00.2]}
2... Nc6 {[%clk 0:03:00.4]} 3. e3 {[%clk 0:02:59.8]} 3... Nf6 {[%clk 0:03:01]}
4. Bb5 {[%clk 0:02:58.6]} 4... Bd6 {[%clk 0:03:01.4]} 5. Na3 {[%clk 0:02:57.6]}
5... Na5 {[%clk 0:03:01.1]} 6. Be2 {[%clk 0:02:56.2]} 6... a6 {[%clk 0:02:59]}
7. c4 {[%clk 0:02:54.8]} 7... Nc6 {[%clk 0:02:50.3]} 8. Nc2 {[%clk 0:02:53.5]}
8... O-O {[%clk 0:02:49.9]} 9. Nf3 {[%clk 0:02:52.9]} 9... Re8 {[%clk
0:02:50.1]} 10. d3 {[%clk 0:02:47.3]} 10... Bf8 {[%clk 0:02:43.2]} 11. e4 {[%clk
0:02:43.6]} 11... d6 {[%clk 0:02:38.7]} 12. O-O {[%clk 0:02:42.9]} 12... g6
{[%clk 0:02:38]} 13. Ne3 {[%clk 0:02:39.9]} 13... Nh5 {[%clk 0:02:35.5]} 14. Nd5
{[%clk 0:02:37.6]} 14... Bg7 {[%clk 0:02:27.6]} 15. a3 {[%clk 0:02:31.7]} 15...
Ne7 {[%clk 0:02:20.1]} 16. Nd2 {[%clk 0:02:23.4]} 16... Nxd5 {[%clk 0:02:17.4]}
17. cxd5 {[%clk 0:02:12.6]} 17... Nf4 {[%clk 0:02:17]} 18. g3 {[%clk 0:02:08.2]}
18... Qg5 {[%clk 0:01:50.5]} 19. Nf3 {[%clk 0:02:00.2]} 19... Nxe2+ {[%clk
0:01:45.3]} 20. Qxe2 {[%clk 0:01:59.1]} 20... Qh5 {[%clk 0:01:45.8]} 21. Rfe1
{[%clk 0:01:37.1]} 21... Bg4 {[%clk 0:01:35.4]} 22. Kg2 {[%clk 0:01:36.5]} 22...
f5 {[%clk 0:01:24.2]} 23. Bc1 {[%clk 0:01:26.8]} 23... Rf8 {[%clk 0:01:08.7]}
24. Qe3 {[%clk 0:01:26.7]} 24... f4 {[%clk 0:00:21.1]} 25. gxf4 {[%clk
0:01:23.2]} 25... Qh3+ {[%clk 0:00:20.5]} 26. Kg1 {[%clk 0:01:20.4]} 26... Bxf3
{[%clk 0:00:20.6]} 0-1